lending/lending_fUSD_20241211
["ID","MTS","AMOUNT","RATE_DAILY","PERIOD"]
[344920285,1733879438805,-500.0,0.00010958,2]
[344920287,1733879438815,-500.0,0.00010958,2]
[344920289,1733879438829,-500.0,0.00010958,2]
[344920291,1733879438838,-500.0,0.00010958,2]
[344920293,1733879438848,-500.0,0.00010958,2]
[344920295,1733879438857,-500.0,0.00010958,2]
[344920297,1733879438869,-500.0,0.00010958,2]
[344920300,1733879438879,-500.0,0.00010958,2]
[344920302,1733879438889,-500.0,0.00010958,2]
[344920304,1733879438898,-500.0,0.00010958,2]
[344920306,1733879438910,-500.0,0.00010958,2]
[344920307,1733879438923,-500.0,0.00010958,2]
[344920310,1733879438932,-500.0,0.00010958,2]
[344920311,1733879438942,-500.0,0.00010958,2]
[344920313,1733879438952,-529.88,0.00010958,2]
[344920315,1733879438962,-529.88,0.00010958,2]
[344920317,1733879438972,-1138.52,0.00010958,2]
[344920319,1733879438981,-1138.52,0.00010958,2]
[344920321,1733879438991,-500.0,0.00010958,2]
[344920323,1733879439000,-500.0,0.00010958,2]
[344920325,1733879439010,-1165.17,0.00010958,2]
[344920327,1733879439019,-1165.17,0.00010958,2]
[344920329,1733879439030,-500.0,0.00010958,2]
[344920332,1733879439039,-500.0,0.00010958,2]
[344920333,1733879439048,-500.0,0.00010958,2]
[344920334,1733879439058,-500.0,0.00010958,2]
[344920335,1733879439068,-500.0,0.00010958,2]
[344920336,1733879439077,-500.0,0.00010958,2]
[344920337,1733879439086,-500.0,0.00010958,2]
[344920338,1733879439096,-500.0,0.00010958,2]
[344920339,1733879439105,-500.0,0.00010958,2]
[344920340,1733879439115,-500.0,0.00010958,2]
[344920341,1733879439124,-500.0,0.00010958,2]
[344920342,1733879439134,-500.0,0.00010958,2]
[344920343,1733879439143,-500.0,0.00010958,2]
[344920344,1733879439153,-500.0,0.00010958,2]
[344920345,1733879439164,-500.0,0.00010958,2]
[344920346,1733879439176,-500.0,0.00010958,2]
[344920347,1733879439186,-3569.24,0.00010958,2]
[344920348,1733879439196,-500.0,0.00010958,2]
[344920349,1733879439205,-3569.24,0.00010958,2]
[344920350,1733879439215,-500.0,0.00010958,2]
[344920351,1733879439225,-500.0,0.00010958,2]
[344920352,1733879439235,-500.0,0.00010958,2]
[344920353,1733879439244,-500.0,0.00010958,2]
[344920354,1733879439254,-500.0,0.00010958,2]
[344920355,1733879439263,-698.67,0.00010958,2]
[344920356,1733879439273,-698.67,0.00010958,2]
[344920357,1733879439285,-3197.82,0.00010958,2]
[344920358,1733879439294,-3197.82,0.00010958,2]
[344920359,1733879439304,-500.0,0.00010958,2]
[344920360,1733879439313,-500.0,0.00010958,2]
[344920361,1733879439323,-500.0,0.00010958,2]
[344920362,1733879439332,-500.0,0.00010958,2]
[344920363,1733879439342,-500.0,0.00010958,2]
[344920364,1733879439351,-514.55,0.00010958,2]
[344920365,1733879439360,-500.0,0.00010958,2]
[344920366,1733879439370,-500.0,0.00010958,2]
[344920367,1733879439379,-500.0,0.00010958,2]
[344920368,1733879439388,-500.0,0.00010958,2]
[344920369,1733879439397,-500.0,0.00010958,2]
[344920370,1733879439407,-500.0,0.00010958,2]
[344920371,1733879439421,-500.0,0.00010958,2]
[344920372,1733879439431,-500.0,0.00010958,2]
[344920373,1733879439440,-500.0,0.00010958,2]
[344920374,1733879439449,-500.0,0.00010958,2]
[344920375,1733879439459,-500.0,0.00010958,2]
[344920376,1733879439468,-500.0,0.00010958,2]
[344920377,1733879439477,-500.0,0.00010958,2]
[344920378,1733879439487,-330.11023335,0.00010958,2]
[344920379,1733879439496,-500.0,0.00010958,2]
[344920380,1733879439505,-500.0,0.00010958,2]
[344920381,1733879439515,-500.0,0.00010958,2]
[344920382,1733879439524,-500.0,0.00010958,2]
[344920383,1733879439534,-500.0,0.00010958,2]
[344920384,1733879439543,-500.0,0.00010958,2]
[344920385,1733879439552,-627.32,0.00010958,2]
[344920386,1733879439562,-627.32,0.00010958,2]
[344920387,1733879439572,-627.32,0.00010958,2]
[344920388,1733879439581,-1138.55,0.00010958,2]
[344920389,1733879439590,-1138.55,0.00010958,2]
[344920390,1733879439599,-1138.55,0.00010958,2]
[344920391,1733879439609,-581.96,0.00010958,2]
[344920392,1733879439618,-581.96,0.00010958,2]
[344920393,1733879439628,-744.81,0.00010958,2]
[344920394,1733879439637,-744.81,0.00010958,2]
[344920395,1733879439647,-744.81,0.00010958,2]
[344920396,1733879439656,-983.67,0.00010958,2]
[344920397,1733879439666,-983.67,0.00010958,2]
[344920398,1733879439676,-983.67,0.00010958,2]
[344920399,1733879439686,-500.0,0.00010958,2]
[344920400,1733879439696,-500.0,0.00010958,2]
[344920401,1733879439706,-500.0,0.00010958,2]
[344920402,1733879439716,-500.0,0.00010958,2]
[344920403,1733879439725,-500.0,0.00010958,2]
[344920404,1733879439735,-5347.17,0.00010958,2]
[344920405,1733879439745,-5347.17,0.00010958,2]
[344920406,1733879439754,-542.98,0.00010958,2]
[344920407,1733879439764,-5347.17,0.00010958,2]
[344920408,1733879439774,-542.98,0.00010958,2]
[344920409,1733879439784,-542.98,0.00010958,2]
[344920410,1733879439793,-2770.58,0.00010958,2]
[344920411,1733879439803,-2770.58,0.00010958,2]
[344920412,1733879439813,-675.24,0.00010958,2]
[344920413,1733879439825,-675.24,0.00010958,2]
[344920414,1733879439835,-1446.11,0.00010958,2]
[344920415,1733879439845,-675.24,0.00010958,2]
[344920416,1733879439854,-1446.11,0.00010958,2]
[344920417,1733879439864,-500.0,0.00010958,2]
[344920418,1733879439874,-500.0,0.00010958,2]
[344920419,1733879439884,-500.0,0.00010958,2]
[344920423,1733879439893,-817.66,0.00010958,2]
[344920424,1733879440135,-817.66,0.00010958,2]
[344920425,1733879440146,-817.66,0.00010958,2]
[344920426,1733879440155,-500.0,0.00010958,2]
[344920427,1733879440166,-500.0,0.00010958,2]
[344920428,1733879440179,-500.0,0.00010958,2]
[344920429,1733879440188,-500.0,0.00010958,2]
[344920430,1733879440198,-500.0,0.00010958,2]
[344920431,1733879440207,-621.1,0.00010958,2]
[344920432,1733879440217,-500.0,0.00010958,2]
[344920433,1733879440226,-500.0,0.00010958,2]
[344920434,1733879440235,-500.0,0.00010958,2]
[344920435,1733879440244,-500.0,0.00010958,2]
[344920436,1733879440254,-251.98946344,0.00010958,2]
[344920437,1733879440263,-500.0,0.00010958,2]
[344920438,1733879440273,-500.0,0.00010958,2]
[344920439,1733879440282,-500.0,0.00010958,2]
[344920440,1733879440291,-500.0,0.00010958,2]
[344920441,1733879440301,-173.5500382,0.00010958,2]
[344920442,1733879440310,-500.0,0.00010958,2]
[344920443,1733879440319,-500.0,0.00010958,2]
[344920444,1733879440328,-500.0,0.00010958,2]
[344920445,1733879440337,-500.0,0.00010958,2]
[344920446,1733879440347,-500.0,0.00010958,2]
[344920447,1733879440356,-500.0,0.00010958,2]
[344920448,1733879440366,-500.0,0.00010958,2]
[344920449,1733879440375,-500.0,0.00010958,2]
[344920450,1733879440385,-500.0,0.00010958,2]
[344920451,1733879440394,-500.0,0.00010958,2]
[344920452,1733879440403,-528.61,0.00010958,2]
[344920453,1733879440412,-528.61,0.00010958,2]
[344920454,1733879440424,-533.74058059,0.00010958,2]
[344920455,1733879440433,-200.0,0.00010959,2]
[344920456,1733879440442,-150.0,0.00010959,2]
[344920457,1733879440451,-690.2470084,0.00010969,2]
[344920458,1733879440460,-690.2470084,0.00010981,2]
[344920460,1733879440471,-690.2470084,0.00010981,2]
[344920461,1733879440480,-2704.0667775,0.00010983,2]
[344920463,1733879440489,-2032.7898693,0.00010983,2]
[344920465,1733879440499,-283.73181674,0.00010983,2]
[344920467,1733879440508,-2000.0,0.0001099,2]
[344920469,1733879440517,-690.2470084,0.00010993,2]
[344920470,1733879440526,-690.2470084,0.00010995,2]
[344920472,1733879440536,-1000.0,0.00010995,2]
[344920474,1733879440545,-532861.10070006,0.00010995,2]
[344920477,1733879440561,-621.4637674,0.00010995,2]
[344920479,1733879440572,-4414.93242347,0.00010995,2]
[344920481,1733879440584,-19653.02386967,0.00010995,2]
[344920483,1733879440593,-200.0,0.00010995,2]
[344920484,1733879440603,-8323.95602213,0.00010995,2]
[344920486,1733879440612,-6681.16353408,0.00010995,2]
[344920488,1733879440627,-266.6299999,0.00010995,2]
[344920490,1733879440639,-1663.19033202,0.00010995,2]
[344920492,1733879440651,-8698.0097073,0.00010995,2]
[344920494,1733879440660,-53311.15395667,0.00010995,2]
[344920510,1733879441142,-500.0,0.00010958,2]
[344920511,1733879441152,-500.0,0.00010958,2]
[344920512,1733879441161,-1571.96487046,0.00010995,2]
[344920513,1733879441178,-530.69259837,0.00010995,2]
[344920514,1733879441190,-361.35,0.00010995,2]
[344920515,1733879441209,-3781.901572,0.00010995,2]
[344920516,1733879441220,-266.34,0.00010995,2]
[344920517,1733879441239,-1098.0,0.00010301,2]
[344920518,1733879441249,-3653.73684704,0.00010995,2]
[344920527,1733879443351,-500.0,0.00010958,2]
[344920528,1733879443361,-500.0,0.00010958,2]
[344920529,1733879443371,-1043.65,0.00010958,2]
[344920530,1733879443380,-239.89000023,0.00010995,2]
[344920531,1733879443392,-901.99479484,0.00010995,2]
[344920532,1733879443411,-1043.65,0.00010958,2]
[344920533,1733879443424,-7955.14053873,0.00010995,2]
[344920538,1733879446173,-379.71008372,0.00010958,2]
[344920539,1733879446185,-120.28991628,0.00010958,2]
[344920540,1733879446194,-200.28349106,0.00010958,2]
[344920541,1733879446204,-784.31843188,0.00010995,2]
[344920542,1733879446293,-342499.84141202,0.00010995,2]
[344920543,1733879446305,-730.27883011,0.00010995,2]
[344920544,1733879446355,-8190.0,0.00010995,2]
[344920545,1733879446419,-6417.7600647,0.00010995,2]
[344920546,1733879446483,-1168.69873473,0.00010995,2]
[344920547,1733879446494,-7561.86528616,0.00010995,2]
[344920548,1733879446505,-2600.53010337,0.00010995,2]
[344920550,1733879636749,682.56,8.219e-05,2]
[344920551,1733879703453,1000.0,9.501e-05,2]
[344920553,1733880296920,152.308419,0.00021,120]
[344920554,1733880310209,152.308419,0.00021,120]
[344920555,1733880320997,152.308419,0.00021,120]
[344920556,1733880331159,152.308419,0.00021,120]
[344920557,1733880340228,152.308419,0.00021,120]
[344920563,1733880349328,152.308419,0.00021,120]
[344920564,1733880358215,152.308419,0.00021,120]
[344920565,1733880367352,152.308419,0.00021,120]
[344920566,1733880376484,152.308419,0.00021,120]
[344920567,1733880385487,152.308419,0.00021,120]
[344920568,1733880394650,152.308419,0.00021,120]
[344920569,1733880402804,152.308419,0.00021,120]
[344920570,1733880412119,152.308419,0.00021,120]
[344920571,1733880421043,152.308419,0.00021,120]
[344920575,1733880431037,152.308419,0.00021,120]
[344920576,1733880439604,152.308419,0.00021,120]
[344920577,1733880448155,152.308419,0.00021,120]
[344920578,1733880457377,152.308419,0.00021,120]
[344920579,1733880465538,152.308419,0.00021,120]
[344920580,1733880474329,152.308419,0.00021,120]
[344920691,1733880638868,-1053.85,9.785e-05,2]
[344920693,1733880638878,-1000.0,9.827e-05,2]
[344920695,1733880638887,-250.0,9.829e-05,2]
[344920697,1733880638897,-168.03,9.831e-05,2]
[344920700,1733880638907,-250.0,9.899e-05,2]
[344920701,1733880638916,-745.78,9.995e-05,2]
[344920703,1733880638926,-102.34,0.00010006,2]
[344920863,1733880640534,-890.52,0.00010006,2]
[344920866,1733880640543,-1006.94,0.00010014,2]
[344920868,1733880640558,-179.32255229,0.00010029,2]
[344920872,1733880640571,-833.40744771,0.00010029,2]
[344920875,1733880640581,-293.52448093,0.0001003,2]
[344920877,1733880640592,-529.26,0.0001003,2]
[344920879,1733880640604,-196.65551907,0.0001003,2]
[344920881,1733880640614,-1010.26,0.00010032,2]
[344920883,1733880640624,-167.24,0.00010111,2]
[344920885,1733880640635,-150.0,0.00010274,2]
[344920887,1733880640652,-482.71,0.00010421,2]
[344920889,1733880640661,-326.646,0.00010421,2]
[344920891,1733880640671,-150.0,0.00010421,2]
[344920893,1733880640680,-859.079,0.00010421,2]
[344920895,1733880640689,-564.0,0.00010421,2]
[344920897,1733880640698,-817.0,0.00010421,2]
[344920899,1733880640708,-924.8137484,0.00010421,2]
[344920925,1733880640942,-584.87352066,0.00010421,2]
[344920927,1733880640954,-2253.31273094,0.00010421,2]
[344920929,1733880640964,-932.0,0.00010421,2]
[344920931,1733880640973,-3595.0,0.00010421,2]
[344920933,1733880640983,-535.0,0.00010421,2]
[344920935,1733880640995,-2294.87355858,0.00010421,2]
[344920937,1733880641007,-4806.85510833,0.00010421,2]
[344921224,1733880643825,-537.35,0.00010421,2]
[344921226,1733880643837,-608.5,0.00010421,2]
[344921229,1733880643848,-1950.0,0.00010421,2]
[344921243,1733880643977,-108.36833309,0.00010421,2]
[344921245,1733880643987,-150.849,0.00010421,2]
[344921247,1733880644001,-378.73163539,0.00010421,2]
[344921265,1733880644167,-846.0,0.00010421,2]
[344921267,1733880644179,-449.62848068,0.00010421,2]
[344921270,1733880644191,-359.35907,0.00010421,2]
[344921272,1733880644205,-1319.07941141,0.00010421,2]
[344921520,1733880646582,-690.203593,9.955e-05,2]
[344921522,1733880646591,-528.24540252,0.00010421,2]
[344921524,1733880646601,-1262.0,0.00010421,2]
[344921526,1733880646610,-567.0,0.00010421,2]
[344921528,1733880646619,-634.0,0.00010421,2]
[344921530,1733880646628,-983.95,0.00010433,2]
[344921532,1733880646638,-350.218,0.0001044,2]
[344921534,1733880646647,-682.56,0.00010472,2]
[344921536,1733880646657,-150.0,0.000105,2]
[344921538,1733880646666,-153.0,0.00010532,2]
[344921540,1733880646675,-153.0,0.00010532,2]
[344921542,1733880646684,-153.0,0.00010532,2]
[344921544,1733880646693,-153.0,0.00010532,2]
[344921546,1733880646702,-153.0,0.00010532,2]
[344921548,1733880646711,-153.0,0.00010532,2]
[344921550,1733880646720,-153.0,0.00010532,2]
[344921552,1733880646729,-153.0,0.00010532,2]
[344921554,1733880646739,-153.0,0.00010532,2]
[344921556,1733880646749,-153.0,0.00010532,2]
[344921558,1733880646758,-153.0,0.00010532,2]
[344921560,1733880646767,-153.0,0.00010532,2]
[344921562,1733880646776,-153.0,0.00010532,2]
[344921564,1733880646785,-153.0,0.00010532,2]
[344921565,1733880646794,-153.0,0.00010532,2]
[344921567,1733880646803,-153.0,0.00010532,2]
[344921569,1733880646813,-153.0,0.00010532,2]
[344921571,1733880646822,-153.0,0.00010532,2]
[344921573,1733880646831,-153.0,0.00010532,2]
[344921575,1733880646840,-153.0,0.00010532,2]
[344921577,1733880646849,-153.0,0.00010532,2]
[344921579,1733880646858,-153.0,0.00010532,2]
[344921581,1733880646868,-153.0,0.00010532,2]
[344921583,1733880646877,-153.0,0.00010532,2]
[344921585,1733880646886,-153.0,0.00010532,2]
[344921587,1733880646895,-153.0,0.00010532,2]
[344921590,1733880646904,-153.0,0.00010532,2]
[344921593,1733880646913,-153.0,0.00010532,2]
[344921595,1733880646922,-811.0,0.00010567,2]
[344921597,1733880646931,-150.0,0.000106,2]
[344921599,1733880646940,-500.0,0.0001063,2]
[344921601,1733880646950,-1000.44,0.0001063,2]
[344921603,1733880646959,-364.37,0.00010729,2]
[344921605,1733880646968,-217.62584913,0.00010729,2]
[344921608,1733880646980,-146.74415087,0.00010729,2]
[344921610,1733880646989,-364.37,0.00010729,2]
[344921612,1733880647003,-364.37,0.00010729,2]
[344921614,1733880647012,-250.60700325,0.00010729,2]
[344921616,1733880647024,-113.76299675,0.00010729,2]
[344921618,1733880647033,-362.01,0.00010729,2]
[344921620,1733880647042,-420.36247704,0.00010736,2]
[344921624,1733880647071,-288.28382991,0.00010736,2]
[344921626,1733880647083,-279.51369305,0.00010736,2]
[344921628,1733880647093,-1127.29552803,0.00010775,2]
[344921630,1733880647102,-200.0,0.0001079,2]
[344921632,1733880647112,-1287.09,0.00010857,2]
[344921634,1733880647121,-152.6437,0.00010899,2]
[344921636,1733880647131,-7660.898,0.00010899,2]
[344921637,1733880647140,-11207.0,0.000109,6]
[344921638,1733880647150,-841.26644147,0.000109,2]
[344921639,1733880647159,-4099.7134,0.000109,2]
[344921640,1733880647169,-358.26669867,0.000109,2]
[344921641,1733880647178,-1025.6845,0.000109,2]
[344921660,1733880647393,-1964.0,0.000109,2]
[344921662,1733880647403,-1580.08436212,0.000109,2]
[344921664,1733880647411,-1393.083,0.00010932,2]
[344921666,1733880647420,-171.837,0.00010932,2]
[344921668,1733880647430,-1580.08436211,0.0001095,2]
[344921670,1733880647439,-500.0,0.00010958,2]
[344921672,1733880647448,-500.0,0.00010958,2]
[344921674,1733880647458,-500.0,0.00010958,2]
[344921676,1733880647468,-500.0,0.00010958,2]
[344921678,1733880647477,-500.0,0.00010958,2]
[344921680,1733880647486,-500.0,0.00010958,2]
[344921682,1733880647498,-500.0,0.00010958,2]
[344921684,1733880647508,-500.0,0.00010958,2]
[344921686,1733880647517,-500.0,0.00010958,2]
[344921688,1733880647526,-500.0,0.00010958,2]
[344921690,1733880647535,-500.0,0.00010958,2]
[344921692,1733880647544,-1009.51,0.00010958,2]
[344921694,1733880647554,-551.33395678,0.0001097,2]
[344921696,1733880647564,-551.33395678,0.00010971,2]
[344921698,1733880647574,-214.95106645,0.00010971,2]
[344921700,1733880647583,-198.45875935,0.00010973,2]
[344921702,1733880647592,-389.61784249,0.00010973,2]
[344921704,1733880647602,-503.09516548,0.00010973,2]
[344921706,1733880647612,-214.95106645,0.00010973,2]
[344921708,1733880647621,-214.95106645,0.00010973,2]
[344921710,1733880647630,-214.95106645,0.00010973,2]
[344921712,1733880647640,-200.0,0.00010975,2]
[344921714,1733880647649,-551.33395678,0.00010976,2]
[344921716,1733880647658,-214.95106645,0.00010984,2]
[344921718,1733880647668,-551.33395678,0.00010987,2]
[344921720,1733880647677,-1459.7017923,0.00010988,2]
[344921722,1733880647687,-1094.8032594,0.00010988,2]
[344921724,1733880647696,-551.33395678,0.0001099,2]
[344921726,1733880647706,-214.95106645,0.00010992,2]
[344921728,1733880647715,-200.0,0.00010995,2]
[344921730,1733880647724,-3000.0,0.00010995,2]
[344921732,1733880647734,-296880.31141505,0.00010995,2]
[344921926,1733880672143,500.0,8.438e-05,2]
[344921930,1733880830201,614.3,8.219e-05,2]
[344921931,1733880990083,201.15819638,0.00021,120]
[344921933,1733881544978,596.62,9.384e-05,2]
[344921934,1733881710633,6657.0,0.00021,120]
[344921936,1733881753416,583.58,8.219e-05,2]
[344921941,1733881816472,250.0,9.207e-05,2]
[344921946,1733881831731,-1000.0,9.66e-05,2]
[344921947,1733881831742,-180.99,9.687e-05,2]
[344921948,1733881831751,-250.0,9.905e-05,2]
[344921949,1733881831760,-300.0,9.985e-05,2]
[344921950,1733881831769,-767.15786272,9.986e-05,2]
[344921951,1733881831779,-247.91190462,9.986e-05,2]
[344921952,1733881831790,-150.0,9.986e-05,2]
[344921953,1733881831799,-150.0,9.986e-05,2]
[344921954,1733881831809,-298.94768649,9.986e-05,2]
[344921955,1733881831819,-150.0,9.986e-05,2]
[344921956,1733881831831,-282.402651,9.986e-05,2]
[344921957,1733881831840,-150.0,9.986e-05,2]
[344921958,1733881831850,-150.0,9.986e-05,2]
[344921959,1733881831859,-97.34344809,9.986e-05,2]
[344921960,1733881831929,-52.65655191,9.986e-05,2]
[344921961,1733881831939,-150.0,9.986e-05,2]
[344921962,1733881831949,-156.94986906,9.986e-05,2]
[344921963,1733881831959,-169.91487157,9.986e-05,2]
[344921964,1733881831968,-150.0,9.986e-05,2]
[344921965,1733881831977,-18.01237862,9.986e-05,2]
[344921966,1733881831988,-131.98762138,9.986e-05,2]
[344921967,1733881831999,-446.48322588,9.998e-05,2]
[344921968,1733881832010,-320.67463684,9.998e-05,2]
[344921969,1733881832020,-247.91190462,9.998e-05,2]
[344921970,1733881832029,-298.94768649,9.998e-05,2]
[344921971,1733881832039,-150.0,0.0001,2]
[344921972,1733881832048,-300.0,0.0001,2]
[344921973,1733881832058,-459.0,0.00010004,2]
[344921974,1733881832067,-456.0,0.00010004,2]
[344921975,1733881832080,-184.85949068,0.00010004,2]
[344921976,1733881832113,-271.14050932,0.00010004,2]
[344921978,1733881832123,-456.0,0.00010004,2]
[344921981,1733881832133,-767.15786272,0.00010009,2]
[344921983,1733881832142,-247.91190462,0.00010009,2]
[344921985,1733881832152,-298.94768649,0.00010009,2]
[344921987,1733881832161,-150.0,0.00010009,2]
[344921988,1733881832170,-150.0,0.00010015,2]
[344921990,1733881832180,-150.0,0.00010019,2]
[344921992,1733881832189,-767.15786272,0.0001002,2]
[344921995,1733881832199,-247.91190462,0.0001002,2]
[344921997,1733881832208,-298.94768649,0.0001002,2]
[344921999,1733881832218,-998.14,0.00010023,2]
[344922001,1733881832227,-767.15786272,0.00010031,2]
[344922003,1733881832236,-247.91190462,0.00010031,2]
[344922005,1733881832245,-298.94768649,0.00010031,2]
[344922007,1733881832254,-150.0,0.00010032,2]
[344922009,1733881832264,-150.0,0.00010039,2]
[344922011,1733881832273,-767.15786272,0.00010042,2]
[344922013,1733881832282,-247.91190462,0.00010042,2]
[344922015,1733881832291,-298.94768649,0.00010042,2]
[344922016,1733881832300,-150.0,0.00010043,2]
[344922019,1733881832309,-1006.21,0.00010052,2]
[344922021,1733881832319,-767.15786272,0.00010054,2]
[344922023,1733881832331,-247.91190462,0.00010054,2]
[344922024,1733881832340,-298.94768649,0.00010054,2]
[344922026,1733881832349,-150.0,0.00010054,2]
[344922029,1733881832359,-767.15786272,0.00010065,2]
[344922031,1733881832368,-247.91190462,0.00010065,2]
[344922033,1733881832377,-298.94768649,0.00010065,2]
[344922034,1733881832387,-150.0,0.00010072,2]
[344922037,1733881832396,-767.15786272,0.00010076,2]
[344922038,1733881832405,-247.91190462,0.00010076,2]
[344922040,1733881832414,-298.94768649,0.00010076,2]
[344922043,1733881832424,-150.0,0.00010077,2]
[344922045,1733881832434,-1013.41,0.00010081,2]
[344922047,1733881832443,-767.15786272,0.00010087,2]
[344922049,1733881832452,-247.91190462,0.00010087,2]
[344922051,1733881832461,-298.94768649,0.00010087,2]
[344922053,1733881832470,-150.0,0.00010092,2]
[344922055,1733881832479,-767.15786272,0.00010098,2]
[344922057,1733881832489,-247.91190462,0.00010098,2]
[344922059,1733881832498,-298.94768649,0.00010098,2]
[344922061,1733881832507,-150.0,0.000101,2]
[344922063,1733881832517,-150.0,0.000101,2]
[344922065,1733881832526,-767.15786272,0.0001011,2]
[344922067,1733881832535,-247.91190462,0.0001011,2]
[344922069,1733881832544,-298.94768649,0.0001011,2]
[344922071,1733881832553,-767.15786272,0.00010121,2]
[344922073,1733881832563,-247.91190462,0.00010121,2]
[344922074,1733881832575,-298.94768649,0.00010121,2]
[344922076,1733881832584,-150.0,0.00010122,2]
[344922078,1733881832594,-984.72,0.00010127,2]
[344922081,1733881832603,-150.0,0.00010129,2]
[344922082,1733881832616,-767.15786272,0.00010132,2]
[344922084,1733881832626,-247.91190462,0.00010132,2]
[344922086,1733881832635,-298.94768649,0.00010132,2]
[344922089,1733881832644,-1017.54,0.00010137,2]
[344922090,1733881832655,-981.97,0.00010139,2]
[344922092,1733881832664,-767.15786272,0.00010143,2]
[344922095,1733881832674,-247.91190462,0.00010143,2]
[344922096,1733881832685,-298.94768649,0.00010143,2]
[344922098,1733881832695,-150.0,0.00010145,2]
[344922100,1733881832704,-150.0,0.00010145,2]
[344922102,1733881832713,-767.15786272,0.00010154,2]
[344922104,1733881832723,-247.91190462,0.00010154,2]
[344922106,1733881832732,-298.94768649,0.00010154,2]
[344922108,1733881832742,-981.47,0.00010155,2]
[344922111,1733881832751,-150.0,0.00010157,2]
[344922112,1733881832761,-767.15786272,0.00010166,2]
[344922114,1733881832770,-247.91190462,0.00010166,2]
[344922116,1733881832779,-298.94768649,0.00010166,2]
[344922118,1733881832790,-150.0,0.00010167,2]
[344922120,1733881832799,-150.0,0.00010171,2]
[344922123,1733881832808,-1009.04,0.00010173,2]
[344922124,1733881832818,-767.15786272,0.00010177,2]
[344922126,1733881832830,-247.91190462,0.00010177,2]
[344922128,1733881832839,-298.94768649,0.00010177,2]
[344922130,1733881832849,-150.0,0.00010185,2]
[344922132,1733881832859,-767.15786272,0.00010188,2]
[344922134,1733881832868,-247.91190462,0.00010188,2]
[344922137,1733881832877,-298.94768649,0.00010188,2]
[344922138,1733881832886,-150.0,0.0001019,2]
[344922140,1733881832896,-1013.49,0.00010197,2]
[344922143,1733881832906,-150.0,0.00010198,2]
[344922144,1733881832915,-767.15786272,0.00010199,2]
[344922147,1733881832925,-247.91190462,0.00010199,2]
[344922148,1733881832934,-298.94768649,0.00010199,2]
[344922150,1733881832943,-767.15786272,0.0001021,2]
[344922152,1733881832953,-247.91190462,0.0001021,2]
[344922155,1733881832963,-298.94768649,0.0001021,2]
[344922156,1733881832972,-150.0,0.00010213,2]
[344922158,1733881832982,-150.0,0.00010214,2]
[344922160,1733881832991,-767.15786272,0.00010222,2]
[344922162,1733881833000,-247.91190462,0.00010222,2]
[344922165,1733881833010,-298.94768649,0.00010222,2]
[344922166,1733881833019,-1002.97,0.00010226,2]
[344922168,1733881833029,-767.15786272,0.00010233,2]
[344922171,1733881833039,-247.91190462,0.00010233,2]
[344922173,1733881833048,-298.94768649,0.00010233,2]
[344922175,1733881833058,-150.0,0.00010235,2]
[344922177,1733881833068,-150.0,0.00010242,2]
[344922179,1733881833081,-767.15786272,0.00010244,2]
[344922180,1733881833090,-247.91190462,0.00010244,2]
[344922181,1733881833101,-298.94768649,0.00010244,2]
[344922182,1733881833111,-150.0,0.0001025,2]
[344922183,1733881833120,-767.15786272,0.00010255,2]
[344922184,1733881833130,-247.91190462,0.00010255,2]
[344922185,1733881833140,-298.94768649,0.00010255,2]